bitfinex/quotes_ETHUSD_20251122
["timestamp","ask_amount","ask_price","bid_price","bid_amount"]
[1763795163050,0.33780664,2762.8,2762.1,0.477]
[1763795163286,0.33780664,2762.8,2762.7,0.4678]
[1763795163495,0.04522758,2763.8,2762.7,0.4678]
[1763795163496,0.18400664,2763.3,2762.8,0.405504]
[1763795163698,0.33772906,2763.8,2763.5,0.405504]
[1763795164016,0.002,2764.5,2764.1,0.5693]
[1763795164459,0.002,2764.5,2764.1,0.4678]
[1763795164655,0.002,2764.5,2764.1,1.1353]
[1763795166297,0.002,2764.5,2764.4,4.5830502]
[1763795166496,0.002,2764.5,2764.4,5.5208502]
[1763795167000,0.002,2764.5,2764.4,6.07293522]
[1763795167422,0.002,2764.8,2764.4,6.07293522]
[1763795167620,0.002,2764.8,2764.5,0.9378]
[1763795168727,0.002,2764.9,2764.7,0.4659]
[1763795168927,0.002,2764.9,2764.8,5.0489502]
[1763795169089,0.002,2764.9,2764.8,5.60103522]
[1763795169290,0.002,2764.9,2764.8,6.07293522]
[1763795169705,0.002,2765.2,2764.8,6.07293522]
[1763795169900,0.002,2765.2,2765.1,0.4659]
[1763795170101,0.002,2765.2,2764.5,1.31249664]
[1763795170102,0.8169,2765.2,2764.5,0.90699264]
[1763795171000,0.002,2765.2,2765.1,0.4659]
[1763795171591,0.002,2765.2,2765.1,1.1241]
[1763795173228,0.002,2765.2,2765.1,1.32720926]
[1763795174422,0.002,2765.2,2764.9,0.90699264]
[1763795174795,0.002,2765.2,2764.9,1.37889264]
[1763795176721,0.002,2765.2,2765.1,0.6522]
[1763795177224,0.002,2765.2,2764.8,5.0549502]
[1763795178312,0.4801,2765.2,2764.4,1.02398502]
[1763795178621,0.4801,2765.2,2764.4,0.4719]
[1763795182121,0.4801,2765.2,2764.4,1.37889264]
[1763795182524,0.3369,2764.5,2764.1,0.1905]
[1763795182824,0.123,2764.9,2764.1,0.1863]
[1763795183045,0.1932,2764.8,2764.1,0.1863]
[1763795183218,0.1932,2764.8,2764.1,0.6582]
[1763795183653,0.1932,2764.8,2764.2,0.4719]
[1763795183827,0.002,2765.2,2764.7,0.4659]
[1763795184125,0.002,2765.2,2764.7,0.9378]
[1763795184344,0.4781,2765.1,2764.7,0.4659]
[1763795184544,0.002,2765.2,2764.7,0.4659]
[1763795185333,0.002,2765.2,2764.8,0.4719]
[1763795185861,0.002,2765.2,2765.1,0.4659]
[1763795186046,0.002,2765.2,2765.1,0.6522]
[1763795186250,0.3389,2765.2,2764.5,4.9885542]
[1763795186455,0.3389,2765.2,2764.6,0.98305542]
[1763795187042,0.002,2765.2,2764.6,0.51115542]
[1763795187263,0.002,2765.2,2764.7,0.4719]
[1763795189730,0.002,2765.2,2764.5,4.5830502]
[1763795189935,0.002,2765.2,2764.5,5.0549502]
[1763795190137,0.002,2765.2,2764.6,0.4719]
[1763795190780,0.002,2765.2,2764.1,0.001]
[1763795190781,0.5301,2764.7,2764.1,0.001]
[1763795190993,0.3369,2764.2,2764.1,0.001]
[1763795191480,0.8136,2764.2,2764.1,0.001]
[1763795191784,0.3369,2764.2,2764.1,0.001]
[1763795192141,0.4767,2764.5,2764.1,0.001]
[1763795192366,0.46075565,2764.4,2764.1,0.001]
[1763795192869,0.93885565,2764.4,2764.1,0.001]
[1763795193080,0.6011,2764.4,2764.1,0.001]
[1763795193382,0.3383161,2764.3,2764.1,0.001]
[1763795193584,1.11797246,2764.3,2764.1,0.001]
[1763795193755,1.64509155,2764.7,2764.1,0.001]
[1763795193951,1.24067835,2764.6,2764.1,0.001]
[1763795194143,0.90238162,2764.6,2764.2,0.4719]
[1763795194343,0.123,2764.6,2764.2,0.4719]
[1763795195782,0.123,2764.6,2764.5,0.4869]
[1763795195998,0.123,2764.6,2764.1,0.001]
[1763795196641,0.46126087,2764.6,2764.1,0.466]
[1763795197294,0.123,2764.6,2764.1,0.466]
[1763795197496,0.97579155,2765.2,2764.5,0.4522]
[1763795197701,1.11724059,2765.1,2764.6,0.9172]
[1763795197897,0.125,2765.2,2764.6,0.9172]
[1763795198468,0.46315096,2765.2,2764.6,0.9172]
[1763795198793,0.002,2765.2,2765.1,0.4522]
[1763795199015,0.002,2765.2,2764.7,5.2315502]
[1763795199016,0.002,2765.2,2764.6,0.18241926]
[1763795199163,0.593,2765.2,2764.5,0.1835]
[1763795199790,0.33816684,2765.1,2764.5,0.1835]
[1763795199990,1.11723489,2765.1,2764.5,0.1835]
[1763795200267,0.77906805,2765.1,2764.5,0.1835]
[1763795200492,0.593,2765.2,2764.5,0.1835]
[1763795200880,0.593,2765.2,2764.5,0.6495]
[1763795201317,0.002,2765.2,2764.5,1.17275502]
[1763795201501,0.3401655,2765.2,2764.6,0.465]
[1763795202003,0.002,2765.2,2765.1,0.4522]
[1763795202627,0.002,2765.2,2764.8,0.465]
[1763795202903,0.002,2765.2,2765.1,0.4522]
[1763795203302,0.002,2765.2,2765.1,0.9172]
[1763795212062,0.002,2765.2,2764.8,0.88560502]
[1763795212559,0.002,2765.2,2765.1,0.4522]
[1763795213131,0.002,2765.2,2764.9,3.808]
[1763795213132,0.8138,2765.2,2764.9,3.808]
[1763795213332,0.002,2765.2,2765.1,0.4522]
[1763795213873,0.002,2765.2,2765.1,0.9172]
[1763795215878,0.002,2765.2,2765.1,1.82419264]
[1763795218796,0.002,2765.2,2765.1,6.03769664]
[1763795219000,0.002,2765.2,2765.1,7.52603951]
[1763795219197,0.002,2765.2,2765.1,11.14254524]
[1763795219869,0.002,2765.2,2765.1,7.52603951]
[1763795220623,0.002,2765.5,2765.1,7.52603951]
[1763795220624,0.002,2765.5,2765.2,0.405504]
[1763795220825,0.002,2765.5,2765.4,6.61208294]
[1763795221127,0.002,2765.5,2765.4,8.2567905]
[1763795221299,0.002,2765.5,2765.4,1.76469664]
[1763795221501,0.3453,2765.5,2765.1,1.95334287]
[1763795221729,0.0047,2765.2,2764.9,0.001]
[1763795221888,0.008,2765.0,2764.9,0.001]
[1763795222090,0.476,2765.0,2764.9,0.001]
[1763795222544,0.008,2765.0,2764.9,0.001]
[1763795222707,0.468,2765.3,2764.9,0.001]
[1763795222905,0.002,2765.5,2764.9,0.001]
[1763795223227,0.468,2765.4,2764.9,0.001]
[1763795223399,0.002,2765.5,2764.9,0.001]
[1763795223599,0.3433,2765.0,2764.9,0.001]
[1763795224040,0.81,2765.0,2764.9,0.001]
[1763795224722,0.4667,2765.4,2764.9,0.4532]
[1763795225491,0.002,2765.5,2764.9,0.9182]
[1763795225796,0.002,2765.5,2765.0,0.18251926]
[1763795225994,0.4801,2765.5,2765.0,0.18251926]
[1763795226397,0.4801,2765.5,2764.9,0.406504]
[1763795227095,0.4801,2765.5,2764.9,4.214504]
[1763795227434,0.002,2765.5,2764.9,1.80149664]
[1763795229549,0.4621,2765.0,2764.9,0.001]
[1763795230148,0.4609,2765.0,2764.9,0.001]
[1763795230440,0.8112,2765.0,2764.9,0.001]
[1763795230797,0.123,2765.3,2764.9,0.4802]
[1763795230997,0.4621,2765.0,2764.9,0.001]
[1763795231901,0.3492,2765.2,2764.9,0.001]
[1763795232101,0.4609,2765.0,2764.9,0.001]
[1763795232612,0.8112,2765.0,2764.9,0.001]
[1763795235501,0.4609,2765.0,2764.9,0.001]
[1763795235931,0.8112,2765.0,2764.9,2.722]
[1763795236431,0.4609,2765.0,2764.9,2.722]
[1763795236745,0.123,2765.3,2764.9,3.2012]
[1763795237109,0.3333,2765.0,2764.9,2.722]
[1763795237536,0.81,2765.0,2764.9,2.722]
[1763795238342,0.123,2765.3,2764.9,3.2012]
[1763795238509,0.123,2765.3,2764.9,7.7694]
[1763795238847,0.002,2765.5,2765.3,0.405504]
[1763795239053,0.002,2765.5,2765.4,1.372704]
[1763795239212,0.002,2765.5,2765.4,1.495704]
[1763795239630,0.002,2765.5,2765.4,6.01881004]
[1763795239845,0.002,2765.8,2765.7,0.405504]
[1763795240048,0.002,2765.8,2765.7,10.45208294]
[1763795240261,0.002,2766.1,2765.9,0.405504]
[1763795240475,0.002,2766.1,2766.0,1.007704]
[1763795240616,0.002,2766.1,2766.0,5.72769664]
[1763795240814,0.1932,2767.4,2766.3,0.405504]
[1763795241026,0.77900236,2767.7,2766.8,1.31249664]
[1763795241225,0.7882,2767.9,2766.8,1.43549664]
[1763795241440,0.97579155,2768.2,2767.2,1.31249664]
[1763795241441,0.77773545,2768.1,2767.2,1.31249664]
[1763795241640,0.04715569,2768.2,2767.4,0.405504]
[1763795241841,0.4781,2768.1,2767.3,0.61598829]
[1763795242170,0.002,2768.2,2767.3,0.405504]
[1763795242329,0.002,2768.2,2767.2,1.09659264]
[1763795242530,0.52525569,2768.2,2767.3,0.405504]
[1763795242728,0.002,2768.2,2767.3,0.405504]
[1763795242935,0.002,2768.2,2767.5,0.405504]
[1763795243144,0.002,2768.2,2768.1,0.4792]
[1763795243346,0.002,2768.2,2768.1,1.029104]
[1763795243556,0.002,2768.2,2768.1,0.405504]
[1763795243969,0.002,2768.2,2768.1,0.884704]
[1763795244155,0.002,2768.2,2768.1,1.074304]
[1763795245172,0.002,2768.2,2768.1,1.562304]
[1763795245344,0.002,2768.2,2768.1,2.46929664]
[1763795245546,0.002,2768.2,2768.1,3.3039642]
[1763795250678,0.002,2768.5,2768.2,0.405504]
[1763795250849,0.002,2768.5,2768.4,0.4792]
[1763795251039,0.002,2768.5,2768.4,0.884704]
[1763795252074,0.002,2768.5,2768.4,0.405504]
[1763795252276,0.4641,2768.5,2768.0,0.123]
[1763795252449,0.4641,2768.5,2768.1,0.405504]
[1763795252974,0.3802,2768.2,2767.7,0.123]
[1763795253334,0.3802,2768.2,2767.8,0.405504]
[1763795253899,0.3802,2768.2,2767.7,0.123]
[1763795254464,0.1871,2767.8,2767.2,0.1896]
[1763795254666,0.1871,2768.4,2767.5,4.8473863]
[1763795254974,0.1871,2768.4,2767.8,0.405504]
[1763795255153,0.002,2768.5,2767.8,0.893504]
[1763795255358,0.002,2768.5,2767.8,0.405504]
[1763795255660,0.4645,2768.5,2767.8,0.405504]
[1763795256079,0.002,2768.5,2767.8,0.405504]
[1763795256286,0.4783,2768.5,2767.6,1.02999264]
[1763795256488,0.4783,2768.5,2767.6,1.66757053]
[1763795256687,0.4783,2768.5,2767.7,0.405504]
[1763795257009,0.4783,2768.5,2767.8,3.808]
[1763795257313,0.4783,2768.5,2767.0,6.6144]
[1763795257314,0.5533,2767.8,2766.7,0.1947]
[1763795257468,0.5533,2767.8,2766.8,1.40539264]
[1763795257662,0.5533,2767.8,2766.9,1.14314789]
[1763795257863,0.002,2768.5,2767.3,0.405504]
[1763795257864,0.4763,2768.3,2767.3,0.405504]
[1763795258101,0.002,2768.5,2767.3,0.405504]
[1763795258102,0.193,2767.9,2767.3,0.405504]
[1763795258324,0.3603,2767.4,2766.3,4.8473863]
[1763795258600,0.193,2767.9,2766.3,0.54926863]
[1763795258601,0.123,2767.6,2766.3,0.54926863]
[1763795258921,0.123,2767.6,2766.0,0.001]
[1763795259069,0.3603,2766.4,2766.0,0.001]
[1763795259258,0.4734,2767.5,2766.0,0.001]
[1763795259259,0.1977,2766.1,2766.0,0.001]
[1763795259805,0.674,2766.1,2766.0,0.001]
[1763795260307,0.674,2766.1,2765.5,0.001]
[1763795260308,0.3497,2765.9,2765.5,0.001]
[1763795260467,0.3509,2765.6,2764.9,2.722]
[1763795260664,0.0035,2765.0,2764.9,2.722]
[1763795261162,0.4798,2765.0,2764.9,2.722]
[1763795261585,0.4763,2765.5,2764.9,2.722]
[1763795261796,0.3485,2765.0,2764.9,2.722]
[1763795262018,0.123,2765.8,2764.9,2.722]
[1763795262220,0.4763,2765.7,2764.9,2.722]
[1763795263017,0.5993,2765.7,2764.9,2.722]
[1763795263195,0.3485,2765.0,2764.9,2.722]
[1763795263399,0.123,2765.4,2764.9,2.722]
[1763795263624,0.3485,2765.0,2764.9,2.722]
[1763795264123,0.8235,2765.0,2764.9,2.722]
[1763795264623,0.9465,2765.0,2764.9,2.722]
[1763795265690,0.8235,2765.0,2764.9,2.722]
[1763795266520,0.8235,2765.0,2764.3,0.001]
[1763795266724,0.3379,2764.6,2764.3,0.001]
[1763795266923,0.193,2764.7,2764.3,0.001]
[1763795266924,0.0081,2764.4,2764.3,0.001]
[1763795267397,0.6074,2764.4,2764.3,0.001]
[1763795268024,0.4844,2764.4,2764.3,0.001]
[1763795268831,0.6074,2764.4,2764.3,0.001]
[1763795270844,0.4844,2764.4,2764.2,0.001]
[1763795271027,0.9339,2764.3,2764.2,0.001]
[1763795271558,1.339404,2764.3,2764.2,0.001]
[1763795271846,0.9339,2764.3,2764.2,0.001]
[1763795272054,1.339404,2764.3,2764.2,0.001]
[1763795272344,0.9339,2764.3,2764.2,0.001]
[1763795272904,1.339404,2764.3,2764.2,0.001]
[1763795273405,0.23821286,2764.7,2764.2,0.001]
[1763795273406,0.04521286,2764.7,2764.2,0.9674]
[1763795273740,0.76059042,2766.1,2764.7,0.405504]
[1763795273905,0.4763,2765.5,2764.3,0.4984]
[1763795274106,2.90171181,2765.4,2764.3,0.4984]
[1763795274634,0.6003,2765.3,2764.3,0.4984]
[1763795275036,0.4763,2765.2,2764.2,0.001]
[1763795276404,0.4763,2765.2,2764.2,0.4994]
[1763795276604,0.4763,2765.2,2764.3,0.5261048]
[1763795277011,0.4763,2765.2,2764.3,1.0245048]
[1763795277207,0.4763,2765.2,2764.2,0.001]
[1763795277746,0.405504,2765.1,2764.2,0.001]
[1763795278118,0.4763,2765.0,2764.2,0.001]
[1763795278622,0.4763,2765.0,2764.2,0.4994]
[1763795278934,0.124,2765.1,2764.2,0.4994]
[1763795279143,0.6003,2765.1,2764.2,0.4994]
[1763795279322,0.6003,2765.1,2764.2,1.0255048]
[1763795279522,0.6003,2765.1,2764.3,0.4984]
[1763795279725,0.124,2765.1,2764.3,0.4984]
[1763795281539,0.124,2765.1,2764.5,4.58394799]
[1763795281952,0.4763,2765.7,2764.6,0.4984]
[1763795282742,0.4763,2765.7,2764.2,1.0255048]
[1763795282937,0.4763,2765.7,2764.3,0.90699264]
[1763795283170,0.4763,2765.7,2764.3,1.40539264]
[1763795283455,0.4763,2765.7,2764.2,4.58494799]
[1763795283456,0.124,2765.8,2765.0,4.58394799]
[1763795283659,0.193,2766.1,2765.4,4.58394799]
[1763795284020,0.193,2766.1,2765.5,0.1947]
[1763795284220,0.124,2766.4,2765.5,1.62939744]
[1763795284416,0.124,2766.4,2765.6,0.4984]
[1763795284644,0.124,2766.4,2765.5,1.62939744]
[1763795284831,0.4763,2766.3,2765.5,1.10169264]
[1763795285821,0.4763,2766.3,2765.5,0.1947]
[1763795286019,0.4763,2766.3,2765.4,4.58394799]
[1763795286631,0.3444,2765.5,2764.8,5.07364799]
[1763795286831,0.7986,2765.5,2764.4,5.07364799]
[1763795287029,0.4542,2765.4,2764.5,0.5073648]
[1763795287246,0.4542,2765.4,2764.5,1.41435744]
[1763795288250,1.09110091,2765.7,2764.9,0.90699264]
[1763795288566,0.124,2765.7,2765.3,0.18]
[1763795288952,0.33917058,2766.1,2765.6,5.06064799]
[1763795289151,0.002,2766.1,2765.6,5.06064799]
[1763795289460,0.002,2766.1,2765.6,0.4767]
[1763795289620,0.5574,2765.7,2765.1,0.18]
[1763795289825,0.5574,2765.7,2765.0,4.58394799]
[1763795289826,0.5574,2765.7,2765.0,0.90699264]
[1763795290221,0.4542,2766.0,2765.1,0.4897]
[1763795290436,0.33727113,2765.9,2765.1,0.4897]
[1763795290659,0.52057113,2765.9,2765.1,0.4897]
[1763795291164,0.33727113,2765.9,2765.3,4.58394799]
[1763795291358,1.11429697,2765.9,2765.3,4.58394799]
[1763795291588,0.002,2766.1,2765.3,5.07364799]
[1763795292095,0.002,2766.1,2765.4,1.39669264]
[1763795292391,0.002,2766.1,2765.4,1.89691227]
[1763795292569,0.002,2766.1,2765.5,0.4897]
[1763795292951,0.002,2766.1,2765.4,1.40721227]
[1763795293587,0.002,2766.1,2765.4,0.50021963]
[1763795293774,0.002,2766.1,2765.4,0.90699264]
[1763795295591,0.4562,2766.1,2765.3,4.58394799]
[1763795295770,0.50138997,2766.1,2765.3,4.58394799]
[1763795295970,0.4562,2766.1,2765.3,4.58394799]
[1763795296488,1.23272604,2766.1,2765.3,4.58394799]
[1763795296690,0.4562,2766.1,2765.3,4.58394799]
[1763795297288,0.4562,2766.1,2765.0,0.90699264]
[1763795297582,0.3367993,2766.0,2765.0,1.39669264]
[1763795297784,0.3367993,2766.0,2765.0,2.0250567]
[1763795297990,0.1833,2765.9,2765.0,5.8330567]
[1763795298298,0.3063,2765.9,2765.0,5.3433567]
[1763795298484,0.4542,2765.8,2765.0,4.71499264]
[1763795299070,0.49939488,2765.8,2764.9,8.88164799]
[1763795299404,0.3741,2765.0,2764.5,4.58394799]
[1763795299607,0.3741,2765.0,2764.2,0.4907]
[1763795299764,0.3741,2765.0,2764.2,1.39769264]
[1763795300166,0.3741,2765.0,2764.2,0.4907]
[1763795300366,0.3741,2765.0,2764.2,1.39769264]
[1763795301090,0.123,2765.3,2764.3,0.4897]
[1763795301592,0.123,2765.3,2764.5,4.58394799]
[1763795302102,0.4542,2765.2,2764.5,4.58394799]
[1763795302302,0.4542,2765.2,2764.2,1.03099264]
[1763795302668,0.4542,2765.2,2764.2,1.52069264]
[1763795303193,0.33796485,2765.1,2764.2,1.52069264]
[1763795303505,0.33796485,2765.1,2764.5,4.58394799]
[1763795303800,0.33796485,2765.2,2764.5,4.58394799]
[1763795304011,1.56922624,2765.2,2764.5,4.58394799]
[1763795304163,0.33796485,2765.1,2764.5,4.58394799]
[1763795304373,0.33796485,2765.1,2764.5,5.07364799]
[1763795304876,0.46096485,2765.3,2764.6,0.4897]
[1763795305080,0.33796485,2765.2,2764.6,0.4897]
[1763795305296,0.123,2765.3,2764.6,0.4897]
[1763795306800,0.46096485,2765.3,2764.6,0.4897]
[1763795307000,0.46096485,2765.3,2764.2,1.43649664]
[1763795307001,0.475,2764.7,2764.2,0.90799264]
[1763795307197,0.69146485,2765.2,2764.2,0.90799264]
[1763795307198,0.475,2764.3,2764.2,0.001]
[1763795307635,0.8285,2764.3,2764.2,0.001]
[1763795309104,0.123,2764.5,2764.2,0.001]
[1763795309335,0.3741,2764.3,2764.2,0.001]
[1763795310421,0.8275,2764.3,2764.2,0.001]
[1763795311815,0.3741,2764.3,2764.2,0.001]
[1763795312413,0.123,2764.5,2764.2,0.4777]
[1763795312611,0.123,2764.5,2764.2,0.9674]
[1763795312795,0.77808856,2764.9,2764.4,0.4767]
[1763795312995,0.4542,2764.9,2764.2,0.001]
[1763795313205,0.49941122,2764.8,2764.2,0.001]
[1763795314125,0.123,2765.0,2764.2,0.001]
[1763795314333,0.123,2765.0,2764.3,0.4897]
[1763795314511,0.16820795,2765.0,2764.3,0.4897]
[1763795315120,0.16820795,2765.0,2764.2,0.8583948]
[1763795315121,0.4542,2764.9,2764.2,0.001]
[1763795317008,0.49940959,2764.9,2764.2,0.001]
[1763795317230,0.4542,2764.9,2764.2,0.001]
[1763795317525,0.123,2764.8,2764.2,0.001]
[1763795318946,0.123,2764.8,2764.2,0.4814]
[1763795321000,0.125,2764.8,2764.2,0.4814]
[1763795323309,0.002,2764.8,2764.7,0.4791]
[1763795323509,0.002,2765.1,2764.8,0.405504]
[1763795323748,0.002,2765.1,2765.0,5.06304799]
[1763795324248,0.002,2765.1,2765.0,5.54344799]
[1763795324465,0.002,2765.1,2765.0,6.13834319]
[1763795326450,0.002,2765.1,2764.6,4.58394799]
[1763795326666,0.002,2765.1,2764.1,4.00120323]
[1763795326667,0.4751,2765.1,2764.5,0.90699264]
[1763795326824,0.8305,2765.1,2764.5,0.90699264]
[1763795327341,0.4751,2765.1,2764.5,0.90699264]
[1763795329037,0.002,2765.1,2764.5,1.5041267]
[1763795329243,0.002,2765.1,2764.5,1.9845267]
[1763795330133,0.002,2765.1,2764.5,1.23490445]
[1763795332930,0.002,2765.1,2764.5,0.75450445]
[1763795333137,0.4575,2765.1,2764.3,3.808]
[1763795335249,0.04520795,2765.0,2764.2,0.001]
[1763795335447,0.3728,2764.3,2764.2,0.001]
[1763795336178,0.8275,2764.3,2764.2,0.001]
[1763795336672,0.78002263,2764.8,2764.2,0.4801]
[1763795337175,0.3728,2764.3,2764.2,0.001]
[1763795337580,0.8275,2764.3,2764.2,0.001]
[1763795338079,0.3728,2764.3,2764.2,0.001]
[1763795339767,0.33856131,2764.5,2764.2,0.001]
[1763795339994,0.78006353,2764.7,2764.2,0.001]
[1763795340323,0.5785,2764.9,2764.3,0.4804]
[1763795340324,0.33854293,2764.6,2764.3,0.4804]
[1763795340456,0.4555,2764.6,2764.2,0.001]
[1763795341443,0.3728,2764.3,2764.2,0.001]
[1763795341984,0.8275,2764.3,2764.2,0.001]
[1763795342146,0.3728,2764.3,2764.2,0.001]
[1763795342744,0.33857817,2764.5,2764.2,0.4801]
[1763795342947,0.33857817,2764.8,2764.4,0.4791]
[1763795343149,0.33857817,2764.8,2764.2,0.001]
[1763795343588,0.3728,2764.3,2764.2,0.001]
[1763795344069,0.8275,2764.3,2764.2,0.001]
[1763795346545,0.123,2764.4,2764.2,0.001]
[1763795346751,1.11828974,2764.8,2764.3,0.9699]
[1763795346977,0.123,2764.9,2764.3,0.9699]
[1763795347182,0.123,2764.9,2764.4,0.4752]
[1763795347387,0.123,2764.9,2764.3,0.4947]
[1763795347546,0.6148,2764.9,2764.3,0.4947]
[1763795347757,0.66000959,2764.9,2764.2,4.84913643]
[1763795347971,0.6148,2764.9,2764.2,4.84913643]
[1763795348161,0.6148,2764.9,2764.2,0.001]
[1763795348162,0.04521122,2764.8,2764.2,0.001]
[1763795348358,0.4918,2764.8,2764.2,0.001]
[1763795348558,0.33840883,2764.7,2764.2,0.001]
[1763795348983,1.27149383,2764.8,2764.2,0.001]
[1763795349153,0.4918,2764.8,2764.2,0.001]
[1763795349594,0.3368,2764.3,2764.2,0.001]
[1763795349794,0.4598,2764.3,2764.2,0.001]
[1763795350094,0.9501,2764.3,2764.2,0.001]
[1763795350284,1.28852904,2764.3,2764.2,0.001]
[1763795352473,0.9501,2764.3,2764.2,0.001]
[1763795352665,2.06772396,2764.3,2764.2,0.001]
[1763795352868,2.41720094,2764.3,2764.2,0.001]
[1763795353198,1.59382179,2764.3,2764.2,0.001]
[1763795353395,1.28956421,2764.3,2764.2,0.001]
[1763795355375,0.123,2764.3,2764.2,0.001]
[1763795356110,0.5774,2764.3,2764.2,0.001]
[1763795356281,2.06938858,2764.3,2764.2,0.001]
[1763795356867,4.3567371,2764.3,2764.2,0.001]
[1763795357080,3.95223783,2764.3,2764.2,0.001]
[1763795357282,3.99745723,2764.3,2764.2,0.001]
[1763795357611,3.95223783,2764.3,2764.2,0.001]
[1763795357984,5.25128628,2764.3,2764.2,0.001]
[1763795359384,3.17283383,2764.3,2764.2,0.001]
[1763795359588,3.54673383,2764.3,2764.2,0.001]
[1763795359898,2.26584119,2764.3,2764.2,0.001]
[1763795360103,1.69548858,2764.3,2764.2,0.001]
[1763795361495,1.24108858,2764.3,2764.2,0.001]
[1763795361701,0.123,2764.3,2764.2,0.001]
[1763795362498,0.5766,2764.3,2764.2,0.001]
[1763795362703,1.33474595,2764.3,2764.2,0.001]
[1763795363120,2.32544212,2764.3,2764.2,0.001]
[1763795363785,2.28022272,2764.3,2764.2,0.001]
[1763795364492,2.28052771,2764.3,2764.2,0.001]
[1763795364899,1.90582771,2764.3,2764.2,0.001]
[1763795365787,1.45222771,2764.3,2764.2,0.001]
[1763795366189,0.67293537,2764.3,2764.2,0.001]
[1763795366489,1.54635477,2764.3,2764.2,0.001]
[1763795366688,2.32564711,2764.3,2764.2,0.001]
[1763795372038,2.87972271,2764.3,2764.2,0.001]
[1763795372223,1.90432771,2764.3,2764.2,0.001]
[1763795372746,1.45222771,2764.3,2764.2,0.001]
[1763795373111,1.16945477,2764.3,2764.2,0.001]
[1763795373311,1.94874711,2764.3,2764.2,0.001]
[1763795373945,1.45222771,2764.3,2764.2,0.001]
[1763795374161,1.24082388,2764.3,2764.2,0.9709]
[1763795374346,0.46153154,2764.3,2764.2,0.9709]
[1763795374853,0.46153154,2764.3,2764.2,0.001]
[1763795375327,2.11314328,2764.3,2764.2,0.001]
[1763795375525,3.48829137,2764.3,2764.2,0.001]
[1763795376738,3.44307197,2764.3,2764.2,0.001]
[1763795377457,2.51289637,2764.3,2764.2,0.001]
[1763795378170,4.67371806,2764.3,2764.2,0.001]
[1763795378345,3.37466961,2764.3,2764.2,0.001]
[1763795378651,2.61714557,2764.3,2764.2,0.001]
[1763795378854,2.99444557,2764.3,2764.2,0.001]
[1763795379181,3.42038901,2764.3,2764.2,0.001]
[1763795381444,3.84977387,2764.3,2764.2,0.001]
[1763795381643,4.72249327,2764.3,2764.2,0.001]
[1763795382047,3.42028901,2764.3,2764.2,0.001]
[1763795382375,3.37506961,2764.3,2764.2,0.001]
[1763795383178,5.37261262,2764.3,2764.2,0.001]
[1763795383792,3.42028901,2764.3,2764.2,0.001]
[1763795384009,5.3294976,2764.3,2764.2,0.001]
[1763795384458,3.37506961,2764.3,2764.2,0.001]
[1763795384882,5.32947982,2764.3,2764.2,0.001]
[1763795385470,4.87997982,2764.3,2764.2,0.001]
[1763795385871,5.32947982,2764.3,2764.2,0.001]
[1763795386578,2.54756961,2764.3,2764.2,0.001]
[1763795386993,2.59278901,2764.3,2764.2,0.001]
[1763795387194,1.68579637,2764.3,2764.2,0.001]
[1763795387507,2.06449637,2764.3,2764.2,0.001]
[1763795387678,3.36725865,2764.3,2764.2,0.001]
[1763795388708,3.81605865,2764.3,2764.2,0.001]
[1763795388904,2.51329637,2764.3,2764.2,0.001]
[1763795389811,3.37594124,2764.3,2764.2,0.001]
[1763795390114,5.37557085,2764.3,2764.2,0.001]
[1763795391200,4.50285145,2764.3,2764.2,0.4631]
[1763795391414,4.88015145,2764.3,2764.2,0.001]
[1763795391617,5.33045145,2764.3,2764.2,0.001]
[1763795391785,4.88015145,2764.3,2764.2,0.001]
[1763795392113,4.50285145,2764.3,2764.2,0.001]
[1763795392315,5.07055215,2764.3,2764.2,0.001]
[1763795392611,5.07055215,2764.3,2764.2,0.9525]
[1763795392612,1.11869551,2764.3,2764.2,0.9525]
[1763795393112,0.33940317,2764.3,2764.2,0.9525]
[1763795393412,0.46240317,2764.4,2764.2,0.9525]
[1763795393617,0.46240317,2764.4,2764.3,0.9515]
[1763795394490,0.46240317,2764.4,2764.3,0.4621]
[1763795395310,0.123,2764.4,2764.3,0.4621]
[1763795396215,0.46240317,2764.4,2764.3,0.4621]
[1763795396740,0.123,2764.4,2764.3,0.9515]
[1763795396904,0.34140317,2764.5,2764.3,0.9515]
[1763795397103,1.12069551,2764.5,2764.4,0.9515]
[1763795397304,0.46440317,2764.5,2764.4,0.9515]
[1763795397684,0.002,2764.5,2764.4,0.9515]
[1763795399495,0.002,2764.5,2764.4,0.4621]
[1763795399688,0.002,2764.5,2764.4,0.9515]
[1763795400723,0.002,2764.5,2764.2,0.001]
[1763795400935,0.123,2764.4,2764.2,0.001]
[1763795401125,0.123,2764.4,2764.2,0.4904]
[1763795401326,0.123,2764.4,2764.3,0.4621]
[1763795402809,0.123,2764.4,2764.2,0.001]
[1763795403325,0.46203073,2764.4,2764.3,0.4621]
[1763795403525,0.123,2764.4,2764.3,0.4621]
[1763795403729,0.33903073,2764.4,2764.3,0.4621]
[1763795403943,0.002,2764.5,2764.3,0.9515]
[1763795404269,0.125,2764.5,2764.4,0.4621]
[1763795404438,0.125,2764.5,2764.4,0.9515]
[1763795405348,0.125,2764.5,2764.4,0.4621]